Cogmind - Beta 10.1 @@@ ROGUE MODE // 2020.09.19 @ 11:34:20 Player: cptwinky Result: Destroyed by DAS Turret with DAS Cannon Performance ------------- Evolutions (1) 500 Regions Visited (5) 1000 Robots Destroyed (29) 145 Value Destroyed (438) 438 Prototype IDs (31) 620 Alien Tech Used (0) 0 Bonus (-289) -289 TOTAL SCORE: 2414 Bonus ------- Aligned with FarCom 300 Friendly Fire -589 Cogmind --------- Core Integrity 0/400 Matter 152/300 Energy 165/280 System Corruption 0% Temperature Cool (38) Movement Walking (150) Ox1 Location -9/Exiles Parts ------- > --- POWER (1) -------- Heavy Ion Engine > --- PROPULSION (2) --- Improved Treads Advanced Myomer Leg > --- UTILITY (4) ------ Humpback Gravity Neutralizing Apparatus Gravity Neutralizing Apparatus > --- WEAPON (2) ------- Guided Plasma Cannon Assault Rifle > --- INVENTORY (24) --- Light Treads Experimental Heat Sink High-capacity Storage Unit High-capacity Storage Unit High-capacity Storage Unit High-capacity Storage Unit Humpback High-capacity Battery (400) Experimental Targeting Computer Medium Armor Plating Medium Armor Plating 8R-AWN's Armor/EX High-powered Tractor Beam AS-neutralizer No. 17b Latent Energy Streamer Assault Rifle Improved Grenade Launcher Improved Grenade Launcher Datajack Peak State ------------ > --- POWER ------------ Heavy Ion Engine > --- PROPULSION ------- Improved Treads Advanced Myomer Leg > --- UTILITY ---------- Experimental Heat Sink Humpback Gravity Neutralizing Apparatus > --- WEAPON ----------- Guided Plasma Cannon Assault Rifle > --- INVENTORY -------- Light Treads High-capacity Storage Unit High-capacity Storage Unit High-capacity Storage Unit High-capacity Storage Unit Humpback High-capacity Battery Gravity Neutralizing Apparatus Experimental Targeting Computer Medium Armor Plating Medium Armor Plating 8R-AWN's Armor/EX High-powered Tractor Beam AS-neutralizer No. 17b Latent Energy Streamer Assault Rifle Improved Grenade Launcher Improved Grenade Launcher Datajack [Rating: 43] Favorites ----------- Power Heavy Ion Engine Engine Heavy Ion Engine Propulsion Light Treads Treads Light Treads Leg Advanced Myomer Leg Wheel Wheel Utility Large Storage Unit Device Bomb Drone Bay Storage Large Storage Unit Protection Medium Armor Plating Weapon Assault Rifle Energy Gun Medium Laser Energy Cannon Advanced Beam Cannon Ballistic Gun Assault Rifle Launcher Improved Grenade Launcher Build | -11 -10 -10 -9 -9 -9 ------- Run | Scr Mat Min Mat Min Exi Slots Evolved 2 | . . . 2 . . Power . | . . . . . . Propulsion . | . . . . . . Utility 2 | . . . 2 . . Weapon . | . . . . . . Parts Attached 64 | 7 15 9 8 2 23 Power 6 | 1 . 2 1 1 1 Engine 6 | 1 . 2 1 1 1 Core . | . . . . . . Reactor . | . . . . . . Propulsion 13 | 2 6 2 . 1 2 Treads 10 | 2 4 2 . 1 1 Leg 1 | . . . . . 1 Wheel 2 | . 2 . . . . Hover . | . . . . . . Flight . | . . . . . . Utility 22 | 2 1 3 3 . 13 Device 7 | . . 1 1 . 5 Storage 10 | 2 1 2 2 . 3 Processor . | . . . . . . Hackware . | . . . . . . Protection 5 | . . . . . 5 Artifact . | . . . . . . Weapon 23 | 2 8 2 4 . 7 Energy Gun 1 | 1 . . . . . Energy Cannon 5 | . . . 3 . 2 Ballistic Gun 16 | 1 8 2 1 . 4 Ballistic Cannon . | . . . . . . Launcher 1 | . . . . . 1 Special Weapon . | . . . . . . Impact Weapon . | . . . . . . Slashing Weapon . | . . . . . . Piercing Weapon . | . . . . . . Special Melee Weapon . | . . . . . . Unidentified Prototypes 8 | . . 1 2 . 5 Parts Lost 11 | . 2 1 . 1 7 Power 3 | . . 1 . 1 1 Propulsion 2 | . 1 . . . 1 Utility 3 | . . . . . 3 Weapon 3 | . 1 . . . 2 Highest Loss Streak 4 | . 2 1 . 1 4 Average Slot Usage (%) 90 | . 100 99 87 87 79 Engine 12 | . 14 14 10 10 11 Treads 24 | . 26 28 22 22 21 Device 5 | . . . 11 11 9 Storage 21 | . 28 27 22 22 13 Energy Cannon 5 | . . . . 22 13 Ballistic Gun 17 | . 25 28 22 . 5 Naked Turns . | . . . . . . Heaviest Build 114 | 15 19 23 56 56 114 Greatest Support 54 | 40 40 40 40 40 54 Greatest Overweight (x) 29 | . . . 1 1 29 Average Overweight (x) . | . . . . 1 1 Largest Inventory Capacity 24 | 8 10 10 16 16 24 Average Capacity 14 | 6 9 9 15 16 21 Most Carried 24 | 4 10 10 16 16 24 Average Carried 13 | 2 9 9 12 15 19 Final Capacity 24 | 8 10 10 16 16 24 Final Carried 21 | 4 10 10 16 16 21 Class Distribution -------------------- 56% | Mutant 27% | Hauler-Mutant 16% | Scavenger-Mutant Dominant Class ---------------- Mutant | -10/Materials Scavenger-Mutant | -10/Mines Mutant | -9/Materials Mutant | -9/Mines Hauler-Mutant | -9/Exiles Resources | -11 -10 -10 -9 -9 -9 ----------- Run | Scr Mat Min Mat Min Exi Matter Collected 1316 | 273 317 191 207 24 304 Remotely . | . . . . . . Salvage Created 987 | 86 312 177 257 33 122 Parts 47 | 3 22 5 9 1 7 Haulers Intercepted 4 | . 2 . 2 . . Recyclers Shooed . | . . . . . . Parts Field Recycled . | . . . . . . Retrieved Matter . | . . . . . . Parts Self-Destructed . | . . . . . . Prevented . | . . . . . . Kills | -11 -10 -10 -9 -9 -9 ------- Run | Scr Mat Min Mat Min Exi Combat Hostiles Destroyed 17 | . 7 2 3 1 4 Guns 12 | . 7 2 3 . . Cannons 2 | . . . . 1 1 AOE 3 | . . . . . 3 Classes Destroyed 8 | 1 5 . . 1 1 Builder 1 | . 1 . . . . Hauler 4 | . 2 . 2 . . Recycler 2 | 1 . 1 . . . Watcher 2 | . 1 . 1 . . Swarmer 5 | . 5 . . . . Grunt 7 | . 2 2 3 . . Demolisher 1 | . . . . 1 . Assembled 6 | . . . . . 6 Best Kill Streak 3 | 1 3 3 2 1 3 Combat Bots Only 3 | . 3 2 2 1 3 Max Kills in Single Turn 3 | 1 2 1 1 1 3 Gunslinging 1 | . 1 . . . . Exploded 3 | . . . . . 3 Melee . | . . . . . . Uniques/NPCs Destroyed 1 | . . . . . 1 8R-AWN (-9/Exiles) Combat | -11 -10 -10 -9 -9 -9 -------- Run | Scr Mat Min Mat Min Exi Damage Taken 3239 | . 725 321 288 494 1411 Core 489 | . 66 10 54 45 314 Absorbed by Shields . | . . . . . . Core Remaining (%) 84 | 100 . 69 . . . Volleys Fired 137 | 1 43 15 29 6 43 Largest 2 | 2 2 2 2 2 2 Hottest 136 | 70 70 40 40 136 120 Shots Fired 261 | 2 86 30 58 12 73 Gun 237 | 2 86 30 58 . 61 Cannon 22 | . . . . 12 10 Launcher 2 | . . . . . 2 Special . | . . . . . . Kinetic 235 | 1 85 30 58 . 61 Thermal 24 | 1 1 . . 12 10 Explosive 2 | . . . . . 2 Electromagnetic . | . . . . . . Robot Hit Streak 15 | 2 15 7 12 9 14 Robot Miss Streak 3 | . 3 2 2 1 1 Penetration Max . | . . . . . . Secondary Targets 4 | . 3 1 . . . Max Gunslinging Chain 1 | . 1 1 . . . Shots Hit Robots 201 | 2 60 22 44 9 64 Core Hits 67 | 2 18 9 13 2 23 Critical Hits 5 | . . . 2 2 1 Critical Kills . | . . . . . . Critical Parts Destroyed 2 | . . . 2 . . Melee Attacks . | . . . . . . Impact . | . . . . . . Slashing . | . . . . . . Piercing . | . . . . . . Sneak Attacks . | . . . . . . Combat Hostiles . | . . . . . . Follow-up Attacks . | . . . . . . Damage Inflicted 3119 | 28 698 231 509 185 1468 Guns 2113 | 28 698 231 509 . 647 Cannons 546 | . . . . 185 361 Explosions 460 | . . . . . 460 Melee . | . . . . . . Ramming . | . . . . . . Kinetic 2088 | 15 686 231 509 . 647 Thermal 571 | 13 12 . . 185 361 Explosive 460 | . . . . . 460 Electromagnetic . | . . . . . . Impact . | . . . . . . Slashing . | . . . . . . Piercing . | . . . . . . Highest Corruption . | . . . . . . Average Corruption . | . . . . . . Corruption Purged . | . . . . . . Overload Shots . | . . . . . . Overflow Damage 25 | . . . . . 25 Projectiles . | . . . . . . Explosions 25 | . . . . . 25 Melee . | . . . . . . Knockbacks . | . . . . . . Impact . | . . . . . . Kinetic . | . . . . . . Secondary . | . . . . . . Self-Inflicted Damage . | . . . . . . Shots . | . . . . . . Rammed . | . . . . . . Targets Rammed . | . . . . . . Kicked . | . . . . . . Crushed . | . . . . . . Highest Temperature 708 | 9 17 34 . 387 708 Average Temperature 188 | 6 3 15 . 204 359 Received Heat Transfer 486 | . 159 183 129 15 . Effects 7 | . . . . . 7 Energy Bleed 1 | . . . . . 1 Matter Decay 1 | . . . . . 1 Short Circuit 2 | . . . . . 2 Damage (minor) 2 | . . . . . 2 Damage (core) 1 | . . . . . 1 Siege Activations . | . . . . . . Robots Corrupted . | . . . . . . Combat Hostiles . | . . . . . . Parts Fried . | . . . . . . Impact Corruptions . | . . . . . . Robots Melted . | . . . . . . Combat Hostiles . | . . . . . . Parts Melted . | . . . . . . Heat Transferred 667 | 37 37 . . 333 260 Parts Sabotaged . | . . . . . . Parts Stolen . | . . . . . . Parts Stripped . | . . . . . . Power Chain Reactions . | . . . . . . Missiles Intercepted . | . . . . . . Alert | -11 -10 -10 -9 -9 -9 ------- Run | Scr Mat Min Mat Min Exi Peak Influence 133 | 5 133 55 107 10 . Initial 10 | . 3 . . 10 . Average 28 | 1 48 11 39 7 . Maximum Alert Level . | . . . . . . Low Security (%) 100 | 100 100 100 100 100 . Level 1 . | . . . . . . Level 2 . | . . . . . . Level 3 . | . . . . . . Level 4 . | . . . . . . Level 5 . | . . . . . . High Security . | . . . . . . Max Security . | . . . . . . Squads Dispatched 1 | . . . 1 . . Investigation . | . . . . . . Extermination . | . . . . . . Reinforcement 1 | . . . 1 . . Assault . | . . . . . . Garrison . | . . . . . . Intercept . | . . . . . . Construction Impeded . | . . . . . . Haulers Reinforced . | . . . . . . Stealth | -11 -10 -10 -9 -9 -9 --------- Run | Scr Mat Min Mat Min Exi Distress Signals 3 | . 1 . 2 . . Communications Jammed . | . . . . . . Distress Signals . | . . . . . . Times Spotted 46 | . 17 5 15 3 6 Peak Tracking Total 7 | . 4 2 4 2 7 Tactical Retreats 5 | . . 2 . . 3 Traps | -11 -10 -10 -9 -9 -9 ------- Run | Scr Mat Min Mat Min Exi Traps Triggered . | . . . . . . Indirectly . | . . . . . . Trap Hack Attempts . | . . . . . . Triggered . | . . . . . . Disarmed . | . . . . . . Reprogrammed 6 | . 6 . . . . Reused 14 | . 14 . . . . Traps Extracted . | . . . . . . Installed . | . . . . . . Triggered 14 | . 14 . . . . Machines | -11 -10 -10 -9 -9 -9 ---------- Run | Scr Mat Min Mat Min Exi Machines Disabled 1 | . . . . . 1 Max in Single Turn 1 | . . . . . 1 Machines Sabotaged . | . . . . . . Garrisons Compromised . | . . . . . . Overloaded Fab Kills . | . . . . . . Fab Network Shutdowns . | . . . . . . Hacking | -11 -10 -10 -9 -9 -9 --------- Run | Scr Mat Min Mat Min Exi Machines Accessed 12 | . 6 1 3 . 2 Terminals 8 | . 5 . 3 . . Fabricators . | . . . . . . Repair Stations . | . . . . . . Recycling Units 1 | . 1 . . . . Scanalyzers . | . . . . . . Garrison Access . | . . . . . . Total Hacks 24 | . 14 1 7 . 2 Successful 12 | . 9 1 . . 2 Failed 11 | . 4 . 7 . . Catastrophic 2 | . 1 . 1 . . Database Lockouts 1 | . 1 . . . . Manual 17 | . 9 . 7 . 1 Terminals 18 | . 11 . 7 . . Fabricators . | . . . . . . Repair Stations . | . . . . . . Recycling Units 3 | . 3 . . . . Scanalyzers . | . . . . . . Garrison Access . | . . . . . . Terminal Hacks 7 | . 4 1 . . 2 Record 1 | . . . . . 1 Part Schematic 1 | . 1 . . . . Open Door 1 | . . 1 . . . Locate Traps 1 | . 1 . . . . Reprogram Traps 1 | . 1 . . . . Hauler Manifests 1 | . 1 . . . . EX-Prototype ID Bank 1 | . . . . . 1 Fabricator Hacks . | . . . . . . Repair Station Hacks . | . . . . . . Recycling Unit Hacks 1 | . 1 . . . . Retrieve Components 1 | . 1 . . . . Scanalyzer . | . . . . . . Garrison Access Hacks . | . . . . . . Unauthorized Hacks 4 | . 4 . . . . Terminals 4 | . 4 . . . . Track 2 | . 2 . . . . Assimilate 1 | . 1 . . . . Botnet 1 | . 1 . . . . Fabricators . | . . . . . . Repair Stations . | . . . . . . Recycling Units . | . . . . . . Scanalyzers . | . . . . . . Garrison Access . | . . . . . . Data Cores Recovered . | . . . . . . Used . | . . . . . . Hacking Detections 7 | . 4 . 3 . . Full Trace Events . | . . . . . . Feedback Events . | . . . . . . Feedback Blocked . | . . . . . . Robot Schematics Acquired . | . . . . . . Robots Built . | . . . . . . Matter . | . . . . . . Time . | . . . . . . Total Robot Build Rating . | . . . . . . Part Schematics Acquired 1 | . 1 . . . . Parts Built . | . . . . . . Matter . | . . . . . . Time . | . . . . . . Total Part Build Rating . | . . . . . . Parts Repaired . | . . . . . . Time . | . . . . . . Parts Recycled . | . . . . . . Recycled Matter . | . . . . . . Retrieved Matter . | . . . . . . Retrieved Components 10 | . 10 . . . . Parts Scanalyzed . | . . . . . . Part Schematics Acquired . | . . . . . . Parts Damaged . | . . . . . . Bothacking | -11 -10 -10 -9 -9 -9 ------------ Run | Scr Mat Min Mat Min Exi Used RIF Installer . | . . . . . . Robots Hacked . | . . . . . . Non-combat . | . . . . . . Combat . | . . . . . . Robot Hacks Applied . | . . . . . . Relay Couplers Released . | . . . . . . Robots Rewired . | . . . . . . Allies Hacked . | . . . . . . Hacks Repelled . | . . . . . . Allies | -11 -10 -10 -9 -9 -9 -------- Run | Scr Mat Min Mat Min Exi Total Allies 4 | . 1 . . 3 . Largest Group 3 | . 1 1 . 3 . Highest-Rated Group 40 | . 10 10 . 40 . Highest-Rated Ally 16 | . 10 10 . 16 . Total Orders 3 | . 2 . 1 . . STAY 1 | . 1 . . . . FOLLOW 1 | . 1 . . . . RETURN 1 | . . . 1 . . Ally Attacks 7 | . . . 3 4 . Total Damage 46 | . . . . 46 . Kills . | . . . . . . Allies Corrupted . | . . . . . . Allies Melted . | . . . . . . Intel | -11 -10 -10 -9 -9 -9 ------- Run | Scr Mat Min Mat Min Exi Robot Analysis Total . | . . . . . . Derelict Logs Recovered 1 | . . 1 . . . Drone Launches 5 | . . . 5 . . Drone Recoveries 2 | . . . 2 . . Exploration | -11 -10 -10 -9 -9 -9 ------------- Run | Scr Mat Min Mat Min Exi Turns Passed 4085 | 123 831 925 675 197 1334 Spaces Moved 1955 | 60 399 530 303 96 567 Core 5 | 3 . . . . 2 Treads 1881 | 57 376 530 303 96 519 Legs 46 | . . . . . 46 Wheels 23 | . 23 . . . . Hover . | . . . . . . Flight . | . . . . . . Fastest Speed 50 | 50 90 160 160 180 150 Average Speed 174 | 154 155 160 179 180 199 Slowest Speed 1500 | 160 160 160 180 180 1500 Overloaded Moves . | . . . . . . Propulsion Burnouts . | . . . . . . Robots Hopped . | . . . . . . Cave-ins Triggered . | . . . . . . Exploration Rate (%) 47 | 5 70 88 24 28 68 Regions Visited 5 Branch Regions 3 Pre-discovered Areas 1 | . . . . . 1 Known Exits Taken . | . . . . . . Unknown Exits Taken 5 | 1 1 1 1 1 . Scrap Searched 3 | . . 2 . 1 . Spaces Dug . | . . . . . . Terrain Destroyed 8 | . . . . . 8 Melee . | . . . . . . Projectile . | . . . . . . AOE 8 | . . . . . 8 Terrain Rammed . | . . . . . . Walls Destroyed . | . . . . . . Machines Disabled . | . . . . . . Actions | -11 -10 -10 -9 -9 -9 --------- Run | Scr Mat Min Mat Min Exi Total 2393 | 85 534 584 380 109 701 Wait 112 | 14 50 9 11 3 25 Move 1950 | 59 398 529 302 95 567 Hop . | . . . . . . Pick Up 73 | 4 14 11 16 2 26 Fast Attach 18 | 7 . 3 2 . 6 Attach 16 | . 2 1 2 1 10 Detach 9 | . . . 2 . 7 Swap 30 | . 13 5 4 1 7 Drop 48 | . 14 11 12 1 10 Fire 137 | 1 43 15 29 6 43 Melee . | . . . . . . Ram . | . . . . . . Kick . | . . . . . . Crush . | . . . . . . Escape Stasis . | . . . . . . Rewire . | . . . . . . Trap . | . . . . . . Miscellaneous . | . . . . . . Route ------- -11/Scrapyard -10/Materials (discovered 3 exits: *Mat x2 / *Min) -10/Mines (discovered 2 exits: *Mat x2) -9/Materials (discovered 2 exits: [*Min] / Sto) -9/Mines -9/Exiles History --------- Turn | Location | Event 43 | -11/Scrapyard | Discovered new exit (range 15) 124 | -11/Scrapyard | Entered Materials 302 | -10/Materials | Build established: Mutant 341 | -10/Materials | Central database locked down 375 | -10/Materials | Discovered new exit (range 15) 549 | -10/Materials | Discovered new exit (range 10) 839 | -10/Materials | Discovered new exit (range 9) 955 | -10/Materials | Entered Mines 955 | -10/Mines | Accompanied by 1 ally 1017 | -10/Mines | Received a Rocket Launcher from a helpful Derelict 1056 | -10/Mines | Discovered new exit (range 10) 1189 | -10/Mines | Build established: Scavenger-Mutant 1210 | -10/Mines | Discovered new exit (range 13) 1230 | -10/Mines | Found the Drone Emporium 1248 | -10/Mines | Found Prototype Device 1248 | -10/Mines | Identified Bomb Drone Bay 1527 | -10/Mines | Build established: Mutant 1565 | -10/Mines | Joined a pair of Derelicts in attacking an 0b10 outpost 1878 | -10/Mines | Build established: Scavenger-Mutant 1880 | -10/Mines | Entered Materials 1880 | -9/Materials | Evolved 2 slots: Utility x2 1881 | -9/Materials | Identified exit to Storage 2182 | -9/Materials | Build established: Mutant 2420 | -9/Materials | Discovered new exit (range 14) 2555 | -9/Materials | Entered Mines 2694 | -9/Mines | Assembled infested the area 2700 | -9/Mines | Assisted by bots powering up and referring to "LRC-V3" 2745 | -9/Mines | Deemed a non-threat by the Exiles lab entrance 2745 | -9/Mines | Discovered new exit (range 5) 2752 | -9/Mines | Entered Exiles 2797 | -9/Exiles | Met 8R-AWN 2828 | -9/Exiles | Met EX-HEX 2895 | -9/Exiles | Met EX-DEC 2909 | -9/Exiles | Learned location of Zion (-6) 3262 | -9/Exiles | Build established: Hauler-Mutant 3315 | -9/Exiles | Met EX-BIN 3339 | -9/Exiles | Aligned with FarCom system 3341 | -9/Exiles | Given EX-Vault access code 3389 | -9/Exiles | Opened EX-Vault 3407 | -9/Exiles | Found Gui. Plasma Cannon 3417 | -9/Exiles | Found Latent Energy Streamer 3468 | -9/Exiles | Warned to stay clear of 0b10 Research branches 3785 | -9/Exiles | Attacked by the Exiles 3847 | -9/Exiles | Lost 3 parts (1n1u1w) 3902 | -9/Exiles | Core integrity fell below 50% 3915 | -9/Exiles | Destroyed 8R-AWN 3928 | -9/Exiles | Lost 4 parts (1p2u1w) 3980 | -9/Exiles | Found Prototype Protection 3980 | -9/Exiles | Identified 8R-AWN's Armor/EX 3992 | -9/Exiles | Found Prototype Device 3992 | -9/Exiles | Identified AS-neutralizer No. 17b 4008 | -9/Exiles | Found Prototype Processor 4083 | -9/Exiles | Core integrity fell below 20% 4086 | -9/Exiles | Destroyed by DAS Turret with DAS Cannon Last Messages --------------- 03924_ Overheating: Energy bleed (-22). 03930_ Imp. Treads permanently disabled. 03930_ Overheating: Short circuit. 03944_ Acquired 116 matter. 03953_ The unstable cave ceiling collapses. 03975_ Acquired Prototype Leg. 03975_ Identified Adv. Myomer Leg. 03976_ Dropped Broken Lgt. Treads. 03980_ Acquired Prototype Protection. 03980_ Identified 8R-AWN's Armor/EX. 03986_ Acquired Prototype Device. 03986_ Identified Gravity Neutralizing Apparatus. 03992_ Acquired Prototype Device. 03992_ Identified AS-neutralizer No. 17b. 03997_ Acquired Prototype Device. 03997_ Identified Exp. Heat Sink. 04002_ Acquired Broken Lgt. Treads. 04005_ Acquired Gravity Neutralizing Apparatus. 04008_ Acquired Prototype Processor. 04084_ Knocked back. Map ----- +----------------------------------------------------+ | ???????????" """#???????## """"???????? | | ???????????" ?????????# """#???????? | | ??????????"" ?????????#" "X" """"???????? | | ??????????"" "?????????#" """ #???????? | | ?????????? ""?????????#" """""""""#???????? | | ???????????" "?????????##" ###########???????? | | #??????????# #????????##"" #?????????????????? | | ######???### ###?######"" #?????????????????? | | """#####X# #"###""""""" ##????????????????? | | """""" " "" ##??############?? | | "" """ " ####""""" """"##? | | " " =]] """ """"## | | " # | | # """# | | ## "# | | ?## " "# | | ??##" " | | ???#""" """""" | | ??##" ######""" | | ??#"" ""##????#####""" | | ??#""" """##?????????##""" | | ??""" """##???????????#"""" | | ?#""" ""#???????????##" | | ?#"" ########??####"""" | | ?#""" ##aaa####""" | | ?#"" @"""" | | ?##"" | | ??#"""" | | ??## " | | ???#" " "" """ | | ???#"""" ""## ##""" " " ""#" | | ???#"" ""#### ######""" """# | | ????" """"##??# #????###""""### ## | | ????""" """#??## ####???######?####### | | ???## ""##??#! " #????????????????? | | ????#"" """##???#" !#????????????????? | | ?????#""" ##????#" "#????????????????? | | ??????#"""" ##?????# "" "#????????????????? | | ????????# #??????########????????????????? | | ?????????#### #???????????????????????????????? | | ????????????## ????????????????????????????????? | | ?????????????# ????????????????????????????????? | | ?????????????? ????????????????????????????????? | | ?????????????????????????????????????????????????? | | ?????????????????????????????????????????????????? | | ?????????????????????????????????????????????????? | | ?????????????????????????????????????????????????? | | ?????????????????????????????????????????????????? | | ?????????????????????????????????????????????????? | | ?????????????????????????????????????????????????? | +----------------------------------------------------+ Best States ------------- Heat Dissipation 54 Energy Generation 14 Energy Capacity 280 Matter Stores 300 Matter Capacity 300 Sight Range 16 Terrain Scan Density 10 Additional Mass Support 24 Armor Coverage 450 Evasion (%) 42 Recoil Reduction 2 Item Schematics ----------------- Hcp. Storage Unit | -10/Materials | Hacked Robot Schematics ------------------ None Fabricated ------------ Nothing Alien Tech Used ----------------- None Achievements -------------- None Challenges ------------ None Game ------ Seed BladeWeightHammer Manual? 0 Play Time 00:21:49 Cumulative 635.4 hours Start 2020.09.19 @ 11:12:35 End 2020.09.19 @ 11:34:20 Sessions 1 Manual Loads 0 Difficulty Rogue Special Mode None Game No. 456 Rogue 452 Adventurer 4 Explorer 0 Win Type - Total 70 Types 56/6/3/2/2/0/0/1/0 Lore% 93 Gallery% 96 Achievement% 96 Wizard Run 0 Options --------- ASCII 0 Keyboard 0 Movement Vi Keybinds 0 Fullscreen 0 Font 16/Terminus Map View 76x50 Tactical HUD 1 Map Filters NONE Filters NONE Steam 1 RUN: 30aea3a1-5233-4cd3-b0bf-079c92fdb52c